Cogmind - Beta 17.1 @@@ ROGUE MODE // 2026.08.26 @ 19:58:09 Player: Artackni Result: Sacrificed to X0-1V1 Performance ------------- Evolutions (0) 0 Regions Visited (1) 200 Robots Destroyed (17) 85 Value Destroyed (293) 293 Prototype IDs (0) 0 Alien Tech Used (0) 0 Bonus (0) 0 TOTAL SCORE: 578 Bonus ------- None Cogmind --------- Core Integrity 0/250 Matter 244/300 Energy 99/100 System Corruption 0% Temperature Cool (0) Movement Core (50) Location -10/Materials Parts ------- > --- POWER (1) -------- (None) > --- PROPULSION (2) --- Light Treads > --- UTILITY (2) ------ (None) > --- WEAPON (2) ------- Grenade Launcher > --- INVENTORY (5) ---- Light Ion Engine Small Storage Unit Assault Rifle Light Assault Rifle Light Assault Rifle Peak State ------------ > --- POWER ------------ (None) > --- PROPULSION ------- Light Treads Light Treads > --- UTILITY ---------- (None) > --- WEAPON ----------- Assault Rifle Light Assault Rifle > --- INVENTORY -------- (None) [Rating: 4] Favorites ----------- Power None Propulsion Light Treads Treads Light Treads Utility None Weapon Assault Rifle Ballistic Gun Assault Rifle Launcher Grenade Launcher Build | -11 -10 ------- Run | Yrd Mat Slots Evolved . | . . Power . | . . Propulsion . | . . Utility . | . . Weapon . | . . Parts Attached 6 | 4 2 Power . | . . Engine . | . . Core . | . . Reactor . | . . Propulsion 2 | 2 . Treads 2 | 2 . Leg . | . . Wheel . | . . Hover . | . . Flight . | . . Utility . | . . Device . | . . Storage . | . . Processor . | . . Hackware . | . . Protection . | . . Artifact . | . . Weapon 4 | 2 2 Energy Gun . | . . Energy Cannon . | . . Ballistic Gun 2 | 2 . Ballistic Cannon . | . . Launcher 2 | . 2 Special Weapon . | . . Impact Weapon . | . . Slashing Weapon . | . . Piercing Weapon . | . . Special Melee Weapon . | . . Unidentified Prototypes . | . . Parts Lost 1 | . 1 Power . | . . Propulsion 1 | . 1 Utility . | . . Weapon . | . . Highest Loss Streak 1 | . 1 To Critical Strikes . | . . Average Backups 4 | 2 4 Power 1 | 1 1 Propulsion . | . . Utility . | . 1 Weapon 2 | . 2 Tool/Special . | . . Unused Backups 4 | . 4 Power 2 | . 2 Propulsion . | . . Utility 1 | . 1 Weapon 1 | . 1 Tool/Special . | . . Average Slot Usage (%) 43 | . 43 Treads 22 | . 22 Ballistic Gun 12 | . 12 Launcher 7 | . 7 Peak Build Rating 4 | 4 4 Average Rating 3 | 3 3 On Entrance 2 | . 4 Avg Prop Armor Cover (%) 24 | 28 24 Naked Turns . | . . Heaviest Build 3 | 3 3 Greatest Support 3 | 3 3 Greatest Overweight (x) . | . . Average Overweight (x) . | . . Largest Inventory Capacity 5 | 5 5 Average Capacity 5 | 5 5 Most Carried 5 | 4 5 Average Carried 4 | 2 4 Final Capacity 5 | 5 5 Final Carried 5 | 4 5 Class Distribution -------------------- 100% | Mutant Dominant Class ---------------- Mutant | -10/Materials Resources | -11 -10 ----------- Run | Yrd Mat Matter Collected 467 | 284 183 Remotely . | . . Salvage Created 413 | 189 224 Parts 26 | 12 14 Haulers Intercepted . | . . Recyclers Shooed 1 | . 1 Parts Field Recycled . | . . Retrieved Matter . | . . Parts Self-Destructed . | . . Prevented . | . . Parts Restored . | . . Kills | -11 -10 ------- Run | Yrd Mat Combat Hostiles Destroyed 8 | . 8 Guns 4 | . 4 AOE 4 | . 4 Classes Destroyed 6 | 2 4 Builder 2 | . 2 Tunneler 5 | 5 . Recycler 1 | 1 . Watcher 1 | . 1 Swarmer 3 | . 3 Grunt 5 | . 5 Best Kill Streak 6 | 6 6 Combat Bots Only 4 | . 4 Max Kills in Single Turn 2 | 1 2 Gunslinging . | . . Exploded 2 | . 2 Melee . | . . Uniques/NPCs Destroyed . | . . Combat | -11 -10 -------- Run | Yrd Mat Hostile Shots Fired 39 | . 39 Missed 11 | . 11 Hits 28 | . 28 Projectile 28 | . 28 Damage Taken 423 | . 423 Core 113 | . 113 Absorbed by Shields . | . . Core Remaining (%) 100 | 100 . Volleys Fired 46 | 11 35 Largest 2 | 2 2 Hottest 40 | 40 40 Shots Fired 78 | 22 56 Gun 64 | 22 42 Cannon . | . . Launcher 14 | . 14 Special . | . . Kinetic 64 | 22 42 Thermal . | . . Explosive 14 | . 14 Electromagnetic . | . . Robot Hit Streak 16 | 15 16 Robot Miss Streak 4 | 1 4 Penetration Max . | . . Secondary Targets . | . . Shots Hit Robots 56 | 17 39 Core Hits 33 | 8 25 Critical Kills . | . . Critical Parts Destroyed . | . . Critical Strikes . | . . Melee Attacks . | . . Impact . | . . Slashing . | . . Piercing . | . . Sneak Attacks . | . . Combat Hostiles . | . . Follow-up Attacks . | . . Damage Inflicted 1180 | 199 981 Guns 531 | 199 332 Cannons . | . . Explosions 649 | . 649 Melee . | . . Ramming . | . . Kinetic 531 | 199 332 Thermal . | . . Explosive 649 | . 649 Electromagnetic . | . . Impact . | . . Slashing . | . . Piercing . | . . Highest Corruption . | . . Average Corruption . | . . Corruption Purged . | . . Corruption Blocked . | . . Overload Shots . | . . Overflow Damage . | . . Projectiles . | . . Explosions . | . . Melee . | . . Knockbacks . | . . Impact . | . . Kinetic . | . . Secondary . | . . Self-Inflicted Damage 57 | . 57 Shots 3 | . 3 Rammed . | . . Targets Rammed . | . . Kicked . | . . Crushed . | . . Highest Temperature 4 | . 4 Average Temperature 2 | . 2 Received Heat Transfer 201 | . 201 Siege Activations . | . . Martial Activations . | . . Shielding Activations . | . . Robots Disrupted . | . . Combat Hostiles . | . . Robots Corrupted . | . . Combat Hostiles . | . . Parts Fried . | . . Impact Corruptions . | . . Robots Melted . | . . Combat Hostiles . | . . Parts Melted . | . . Heat Transferred . | . . Parts Sabotaged . | . . Parts Stolen . | . . Parts Stripped . | . . Power Chain Reactions . | . . Alert | -11 -10 ------- Run | Yrd Mat Maximum Alert Level . | . . Low Security (%) 100 | 100 100 Level 1 . | . . Level 2 . | . . Level 3 . | . . Level 4 . | . . Level 5 . | . . High Security . | . . Max Security . | . . Peak Influence 176 | 15 176 Initial 6 | . 6 Average 70 | 2 79 Influence Increases 426 | 30 396 Destroy 0b10 Robot/C 160 | . 160 Destroy 0b10 Robot/NC 45 | 30 15 Destroy Leader 42 | . 42 Destroy Structure 59 | . 59 Partial Spotted 45 | . 45 Lose Combat Pursuer 75 | . 75 Influence Decreases 299 | 20 279 Entered New Map 4 | . 4 Time Decay 285 | 20 265 Lost Part 10 | . 10 Squads Dispatched 2 | . 2 Investigation 2 | . 2 Extermination . | . . Reinforcement . | . . Assault . | . . Garrison . | . . Intercept . | . . Searches Triggered . | . . Construction Impeded . | . . Haulers Reinforced . | . . Active Scanning Responses . | . . Cargo Convoy Interrupts . | . . Stealth | -11 -10 --------- Run | Yrd Mat Distress Signals 1 | . 1 Communications Jammed . | . . Distress Signals . | . . Times Spotted 23 | . 23 Peak Tracking Total 6 | . 6 Tactical Retreats 2 | . 2 Traps | -11 -10 ------- Run | Yrd Mat Traps Triggered 2 | . 2 Indirectly . | . . Trap Hack Attempts . | . . Triggered . | . . Disarmed . | . . Reprogrammed . | . . Reused . | . . Traps Extracted . | . . Installed . | . . Triggered . | . . Machines | -11 -10 ---------- Run | Yrd Mat Machines Disabled . | . . Max in Single Turn . | . . Machines Repaired . | . . Machines Dismantled . | . . Machines Sabotaged . | . . Overloaded Fab Kills . | . . Hacking | -11 -10 --------- Run | Yrd Mat Machines Accessed . | . . Terminals . | . . Fabricators . | . . Repair Stations . | . . Recycling Units . | . . Scanalyzers . | . . Garrison Access . | . . Total Hacks . | . . Successful . | . . Failed . | . . Catastrophic . | . . Database Lockouts . | . . Manual 1 | . 1 Terminals . | . . Fabricators . | . . Repair Stations . | . . Recycling Units . | . . Scanalyzers . | . . Garrison Access . | . . Terminal Hacks . | . . Fabricator Hacks . | . . Repair Station Hacks . | . . Recycling Unit Hacks . | . . Scanalyzer . | . . Garrison Access Hacks . | . . Unauthorized Hacks . | . . Terminals . | . . Fabricators . | . . Repair Stations . | . . Recycling Units . | . . Scanalyzers . | . . Garrison Access . | . . Data Cores Recovered . | . . Used . | . . Hacking Detections . | . . Full Trace Events . | . . Feedback Events . | . . Feedback Blocked . | . . Robot Schematics Acquired . | . . Robots Built . | . . Authchips . | . . Time . | . . Total Robot Build Rating . | . . Part Schematics Acquired . | . . Parts Built . | . . Authchips . | . . Time . | . . Total Part Build Rating . | . . Part Studies Acquired . | . . Parts Repaired . | . . Time . | . . Parts Recycled . | . . Recycled Matter . | . . Retrieved Matter . | . . Retrieved Components . | . . Parts Scanalyzed . | . . Part Schematics Acquired . | . . Parts Damaged . | . . Bothacking | -11 -10 ------------ Run | Yrd Mat Used RIF Installer . | . . Robots Hacked . | . . Non-combat . | . . Combat . | . . Robot Hacks Applied . | . . Relay Couplers Released . | . . Fabnet Peak Effective % . | . . Robots Rewired . | . . Allies Hacked . | . . Hacks Repelled . | . . Allies | -11 -10 -------- Run | Yrd Mat Total Allies . | . . Largest Group . | . . Highest-Rated Group . | . . Highest-Rated Ally . | . . Total Orders . | . . Ally Attacks . | . . Total Damage . | . . Kills . | . . Allies Corrupted . | . . Allies Melted . | . . Intel | -11 -10 ------- Run | Yrd Mat Active Infowar (turns) . | . . Robot Analysis Total . | . . Derelict Logs Recovered . | . . Drone Launches . | . . Drone Recoveries . | . . Exploration | -11 -10 ------------- Run | Yrd Mat Turns Passed 735 | 91 644 Spaces Moved 1019 | 100 919 Core 1019 | 100 919 Treads . | . . Legs . | . . Wheels . | . . Hover . | . . Flight . | . . Fastest Speed 50 | 50 50 Average Speed 50 | 50 50 Slowest Speed 50 | 50 50 Overloaded Moves . | . . Propulsion Burnouts . | . . Robots Hopped . | . . Potential Cave-ins . | . . Cave-ins Triggered . | . . Exploration Rate (%) 50 | 3 98 Regions Visited 1 Branch Regions . Pre-discovered Areas . | . . Known Exits Taken . | . . Unknown Exits Taken 1 | 1 . Scrap Searched . | . . Spaces Dug . | . . Terrain Destroyed 77 | . 77 Melee . | . . Projectile . | . . AOE 77 | . 77 Terrain Rammed . | . . Walls Destroyed . | . . Machines Disabled . | . . Actions | -11 -10 --------- Run | Yrd Mat Total 1170 | 118 1052 Wait 91 | . 91 Move 1018 | 99 919 Hop . | . . Pick Up 6 | 4 2 Fast Attach 5 | 4 1 Attach . | . . Detach . | . . Swap 1 | . 1 Drop 3 | . 3 Fire 46 | 11 35 Melee . | . . Ram . | . . Kick . | . . Crush . | . . Escape Stasis . | . . Rewire . | . . Trap . | . . Miscellaneous . | . . Route ------- -11/Scrapyard -10/Materials (discovered 5 exits: [*Mat x3] / [*Min] / [*Sub]) History --------- Turn | Location | Event 10 | -11/Scrapyard | Discovered new exit (range 15) 92 | -11/Scrapyard | Entered Materials 238 | -10/Materials | Discovered new exit (range 12) 287 | -10/Materials | Discovered new exit (range 8) 302 | -10/Materials | Build established: Mutant 312 | -10/Materials | Discovered new exit (range 16) 342 | -10/Materials | Discovered new exit (range 9) 732 | -10/Materials | Discovered new exit (range 5) 736 | -10/Materials | Made a sacrifice at D.C.S.S. Altar Unit 736 | -10/Materials | Sacrificed to X0-1V1 Last Messages --------------- 00433_ U-05 Engineer builds a Wall. 00433_ U-05 Engineer lays Concrete. 00435_ The unstable cave ceiling collapses. 00435_ R-06 Scavenger collects Lgt. Assault Rifle. 00451_ Triggered Alarm Trap. 00451_ An alarm sounds. 00451_ ALERT: Alarm triggered, dispatching investigation squad. 00480_ Lgt. Treads destroyed. 00483_ K-01 Serf collects debris. 00507_ The unstable cave ceiling collapses. 00529_ W-16 Scout destroyed. 00593_ Acquired 57 matter. 00593_ Acquired 38 matter. 00614_ K-01 Serf collects debris. 00617_ Acquired Grenade Launcher. 00618_ Dropped Grenade Launcher. 00633_ W-16 Scout sends out distress signal. 00732_ EXIT=FOUND 00736_ Connecting with D.C.S.S. Altar Unit... 00736_ Current location identified: Materials Map ----- +----------------------------------------------------+ | | | | | | | | | | | | | | | | | | | | | | | | | | | | | | | | | | | | | | | | | | | | | | | ?????????##????###?????????????????? | | ?????????#X#####<###############???? | | ?????????# @ # ! #???? | | ?????????# # #???? | | #######??# #!* #???? | | # #??#########+#!* #???? | | # #????# # #???? | | # ####?# + #???? | | # # #?# ###### #???? | | # # #?# #????#############???? | | # + ### #????# #######??##### | | # # #???## # #### # | | # # #???# # ]## < # | | # # """ #???## # ## # | | # # """ ###### # ## # | | # # """ ##### " ## # | | # #] #""" ## # | | ####### T """ ## # | | # # #######+## #""" # | | # # ## ! ###### "" # | | # """ + ##[ """######""" + " | | # """ # ## """#????#"" # | | # """ # ## """#????#"" # | | # """?# ##! ##"""# " ###### | | # ?# ###########"T"# #????? | | ?###??# #???# #" "############# | | ??????# =#???# | +----------------------------------------------------+ Best States ------------- Heat Dissipation 25 Energy Generation 5 Energy Capacity 100 Matter Stores 300 Matter Capacity 300 Sight Range 16 Terrain Scan Density 10 Evasion (%) 50 Recoil Reduction 2 Item Schematics ----------------- None Robot Schematics ------------------ None Fabricated ------------ Nothing Repaired ---------- Nothing Studied --------- None Alien Tech Used ----------------- None Achievements -------------- None Challenges ------------ None Game ------ Seed TerrorQuantumAirjet Manual? 0 Play Time 00:08:36 Cumulative 306.6 hours Start 2026.08.26 @ 19:50:50 End 2026.08.26 @ 19:58:09 Sessions 1 Manual Loads 0 Difficulty Rogue Special Mode None Game No. 150 Rogue 150 Adventurer 0 Explorer 0 Win Type - Total 18 Types 14/1/1/1/0/0/0/0/0/1 Lore% 79 Gallery% 75 Achievement% 73 Wizard Run 0 Options --------- Layout 0 ASCII 0 Keyboard 1 Movement Arrows Keybinds 0 Fullscreen 2 Font 18/SmallcapsGlow Map View 76x50 Zoom Use 0% Tactical HUD 1 Map Filters NONE Filters NONE Steam 1 RUN: 12f379ab-d4c3-41c3-b34c-7c06e49d757c